fUSD/lending_fUSD_20240820
["ID","MTS","AMOUNT","RATE_DAILY","PERIOD"]
[335341916,1724137888561,2081.9263,9.841e-05,2]
[335341917,1724137916275,600.0,8.22e-05,2]
[335341918,1724137918333,600.0,9.59e-05,2]
[335341919,1724137991846,1635.35007841,9.59e-05,2]
[335341920,1724138022067,2545.44,9.73e-05,2]
[335341921,1724138035568,600.0,8.22e-05,2]
[335341922,1724138037125,600.0,9.59e-05,2]
[335341923,1724138040086,213.19433324,9.59e-05,2]
[335341924,1724138094229,536.4,9.717e-05,2]
[335341925,1724138121907,442.57,9.717e-05,2]
[335341926,1724138126785,316.7232625,9.899e-05,2]
[335341927,1724138131971,200.0,9.731e-05,2]
[335341928,1724138145866,1635.35007841,9.59e-05,2]
[335341929,1724138151460,500.0,8.22e-05,2]
[335341930,1724138153035,500.0,9.59e-05,2]
[335341931,1724138156883,1635.35007841,9.899e-05,2]
[335341932,1724138184536,500.0,8.22e-05,2]
[335341933,1724138186149,500.0,9.59e-05,2]
[335341934,1724138186183,450.0,9.899e-05,2]
[335341935,1724138214855,409.24,8.219e-05,2]
[335341936,1724138235367,171.9,9.75e-05,2]
[335341937,1724138251764,2348.59,9.7e-05,2]
[335341944,1724138280144,557.44,9.686e-05,2]
[335341945,1724138285875,1635.35007841,9.75e-05,2]
[335341949,1724138334143,4017.73,9.754e-05,2]
[335341951,1724138372896,1635.35007841,9.754e-05,2]
[335341952,1724138398197,500.0,9.662e-05,3]
[335341955,1724138407969,150.0,5e-05,2]
[335341956,1724138417075,176.28,9.661e-05,2]
[335341958,1724138447471,1508.33,9.763e-05,2]
[335341960,1724138472906,1635.35007841,9.662e-05,2]
[335341961,1724138491284,396.94,9.674e-05,2]
[335341966,1724138668257,608.97,9.686e-05,2]
[335341967,1724138672465,23900.0,9.691e-05,2]
[335341968,1724138694086,407.17,8.219e-05,2]
[335341969,1724138738378,189.53,9.652e-05,2]
[335341970,1724138762104,1078.43,9.619e-05,2]
[335341971,1724138763281,554.04,9.644e-05,2]
[335341972,1724138813036,250.0,9.661e-05,2]
[335341973,1724138826107,194.75826541,9.789e-05,2]
[335341974,1724138877951,176.28,9.552e-05,2]
[335341975,1724138886490,642.70938922,9.899e-05,2]
[335341977,1724138930460,1049.64030745,9.899e-05,2]
[335341978,1724138957929,1746.14005531,9.899e-05,2]
[335341979,1724138970907,600.70370687,9.899e-05,2]
[335341980,1724138982414,1635.35007841,9.899e-05,2]
[335341992,1724139031440,-589.0,9.908e-05,2]
[335341994,1724139031449,-441.0581272,9.929e-05,2]
[335341996,1724139031459,-155.10941378,9.929e-05,2]
[335341998,1724139031468,-14385.13203072,9.968e-05,2]
[335341999,1724139031477,-152.92,9.968e-05,2]
[335342000,1724139031486,-11892.32903202,9.988e-05,2]
[335342001,1724139031503,-765.29022052,9.988e-05,2]
[335342002,1724139031769,-448.12958754,9.988e-05,2]
[335342042,1724139037417,-9468.9128423,9.988e-05,2]
[335342043,1724139037428,-1375.05186256,9.988e-05,2]
[335342044,1724139037697,-2217.05625832,9.988e-05,2]
[335342045,1724139037708,-150.0,9.998e-05,2]
[335342046,1724139037718,-1050.97286875,0.0001,2]
[335342047,1724139037727,-3638.1452817,0.0001,2]
[335342048,1724139037736,-4794.2461,0.0001,2]
[335342049,1724139037745,-1050.0,0.0001,2]
[335342050,1724139037754,-48.5040637,0.00010018,2]
[335342051,1724139037766,-451.4959363,0.00010018,2]
[335342052,1724139037775,-2563.8,0.00010018,2]
[335342053,1724139037788,-500.0,0.00010025,2]
[335342054,1724139037797,-166.39780491,0.00010026,2]
[335342055,1724139037806,-500.0,0.00010043,2]
[335342056,1724139037816,-150.99,0.00010097,2]
[335342058,1724139037825,-439.33000716,0.000101,2]
[335342060,1724139037835,-500.0,0.00010112,2]
[335342061,1724139037844,-397.72258241,0.00010181,2]
[335342063,1724139039612,-604.46,0.00010181,2]
[335342065,1724139039625,-8997.80741759,0.00010181,2]
[335342067,1724139039634,-700.0,0.00010213,2]
[335342069,1724139039643,-700.0,0.00010244,2]
[335342071,1724139039653,-500.0,0.00010269,2]
[335342074,1724139039663,-700.0,0.00010309,2]
[335342075,1724139039672,-500.0,0.00010358,2]
[335342076,1724139039682,-500.0,0.00010378,2]
[335342077,1724139039691,-150.5,0.000104,2]
[335342078,1724139039701,-500.0,0.00010448,2]
[335342079,1724139039711,-407.17,0.00010459,2]
[335342081,1724139039720,-154.223971,0.00010475,2]
[335342083,1724139039729,-151.0,0.00010475,2]
[335342085,1724139039739,-459.563457,0.00010475,2]
[335342087,1724139039748,-459.563457,0.00010475,2]
[335342088,1724139039758,-151.0,0.00010475,2]
[335342090,1724139039767,-151.0,0.00010475,2]
[335342092,1724139039776,-151.0,0.00010475,2]
[335342094,1724139039785,-151.0,0.00010475,2]
[335342096,1724139039795,-151.0,0.00010475,2]
[335342098,1724139039804,-151.0,0.00010475,2]
[335342100,1724139039814,-151.0,0.00010475,2]
[335342102,1724139039823,-360.369066,0.00010475,2]
[335342103,1724139039833,-2751.71,0.00010475,2]
[335342104,1724139039842,-17553.42,0.00010475,2]
[335342105,1724139039851,-25219.96,0.00010475,2]
[335342106,1724139039861,-3464.08,0.00010475,2]
[335342107,1724139039870,-10843.18,0.00010475,2]
[335342108,1724139039885,-8242.23044189,0.00010505,2]
[335342109,1724139039895,-500.0,0.00010563,2]
[335342110,1724139039905,-1866.38643791,0.00010566,2]
[335342111,1724139039914,-155.57775669,0.00010566,2]
[335342112,1724139039923,-500.0,0.00010581,2]
[335342113,1724139039933,-150.0,0.00010632,2]
[335342114,1724139039943,-700.0,0.00010656,2]
[335342115,1724139039952,-150.0,0.00010663,2]
[335342116,1724139039962,-150.0,0.0001067,2]
[335342117,1724139039972,-500.0,0.00010674,2]
[335342118,1724139039981,-150.0,0.0001069,2]
[335342119,1724139039991,-155.5628945,0.00010699,2]
[335342120,1724139040001,-150.0,0.00010706,2]
[335342121,1724139040011,-209.44699376,0.00010709,2]
[335342122,1724139040020,-1300.9168339,0.00010713,2]
[335342123,1724139040028,-700.0,0.00010719,2]
[335342124,1724139040038,-2529.73669,0.0001079,2]
[335342125,1724139040047,-151.0,0.0001079,2]
[335342126,1724139040057,-151.0,0.0001079,2]
[335342127,1724139040066,-151.0,0.0001079,2]
[335342128,1724139040075,-151.0,0.0001079,2]
[335342129,1724139040083,-151.0,0.0001079,2]
[335342130,1724139040092,-3058.3099,0.00010799,2]
[335342131,1724139040101,-150.0,0.00010799,2]
[335342132,1724139040110,-151.0,0.00010799,2]
[335342133,1724139040119,-459.563457,0.00010799,2]
[335342134,1724139040128,-459.563457,0.00010799,2]
[335342135,1724139040137,-151.0,0.00010799,2]
[335342136,1724139040147,-151.0,0.00010799,2]
[335342137,1724139040155,-263.050873,0.00010799,2]
[335342138,1724139040165,-151.0,0.00010799,2]
[335342139,1724139040174,-151.0,0.00010799,2]
[335342140,1724139040184,-411.111482,0.00010799,2]
[335342141,1724139040193,-411.111482,0.00010799,2]
[335342142,1724139040202,-151.0,0.00010799,2]
[335342143,1724139040212,-151.0,0.00010799,2]
[335342144,1724139040221,-153.037112,0.00010799,2]
[335342145,1724139040231,-151.0,0.00010799,2]
[335342146,1724139040241,-151.0,0.00010799,2]
[335342147,1724139040250,-151.0,0.00010799,2]
[335342148,1724139040259,-151.0,0.00010799,2]
[335342149,1724139040268,-270.0311,0.000108,2]
[335342150,1724139040279,-164.58292647,0.000108,2]
[335342151,1724139040288,-150.0,0.00010801,2]
[335342152,1724139040298,-554.04,0.0001085,2]
[335342153,1724139040307,-823.55098363,0.00010852,2]
[335342154,1724139040317,-607.50217725,0.00010852,2]
[335342155,1724139040326,-700.0,0.00010853,2]
[335342156,1724139040336,-155.0,0.00010862,2]
[335342157,1724139040346,-150.0,0.00010863,2]
[335342159,1724139040355,-176.28,0.00010869,2]
[335342160,1724139040365,-200.0,0.00010873,2]
[335342162,1724139040375,-200.0,0.00010873,2]
[335342163,1724139040384,-150.0,0.00010875,2]
[335342164,1724139040393,-150.0,0.00010882,2]
[335342165,1724139040403,-547.20212831,0.00010888,2]
[335342166,1724139040412,-203.03298078,0.00010888,2]
[335342167,1724139040421,-1829.54544548,0.0001089,2]
[335342168,1724139040430,-557.44,0.00010897,2]
[335342169,1724139040440,-2639.34147816,0.00010897,2]
[335342170,1724139040449,-669.753908,0.00010898,2]
[335342171,1724139040459,-500.0,0.00010898,2]
[335342172,1724139040469,-500.0,0.00010898,2]
[335342173,1724139040478,-500.0,0.00010898,2]
[335342174,1724139040488,-40030.34114248,0.00010899,2]
[335342175,1724139040497,-170.59001801,0.00010899,2]
[335342176,1724139040507,-2000.0,0.00010899,2]
[335342177,1724139040516,-200.0,0.00010899,2]
[335342178,1724139040525,-500.0,0.00010899,2]
[335342179,1724139040535,-516.34481954,0.00010899,2]
[335342180,1724139040545,-500.0,0.00010899,2]
[335342181,1724139040556,-500.0,0.00010899,2]
[335342182,1724139040566,-500.0,0.00010899,2]
[335342183,1724139040576,-500.0,0.00010899,2]
[335342184,1724139040586,-500.0,0.00010899,2]
[335342185,1724139040596,-150.8132745,0.00010899,2]
[335342186,1724139040606,-151.661292,0.00010899,2]
[335342187,1724139040616,-151.0,0.00010899,2]
[335342188,1724139040625,-151.764916,0.00010899,2]
[335342189,1724139040635,-152.054564,0.00010899,2]
[335342190,1724139040645,-500.0,0.00010899,2]
[335342191,1724139040654,-500.0,0.00010899,2]
[335342192,1724139040664,-500.0,0.00010899,2]
[335342193,1724139040674,-500.0,0.00010899,2]
[335342194,1724139040683,-500.0,0.00010899,2]
[335342195,1724139040693,-500.0,0.00010899,2]
[335342196,1724139040702,-500.0,0.00010899,2]
[335342197,1724139040712,-500.0,0.00010899,2]
[335342198,1724139040721,-500.0,0.00010899,2]
[335342199,1724139040731,-500.0,0.00010899,2]
[335342200,1724139040740,-500.0,0.00010899,2]
[335342201,1724139040750,-500.0,0.00010899,2]
[335342202,1724139040759,-500.0,0.00010899,2]
[335342203,1724139040769,-500.0,0.00010899,2]
[335342204,1724139040779,-500.0,0.00010899,2]
[335342205,1724139040789,-500.0,0.00010899,2]
[335342206,1724139040798,-505.71737532,0.00010899,2]
[335342207,1724139040807,-151.0,0.00010899,2]
[335342208,1724139040817,-151.0,0.00010899,2]
[335342209,1724139040826,-151.0,0.00010899,2]
[335342210,1724139040835,-155.039749,0.00010899,2]
[335342211,1724139040844,-151.0,0.00010899,2]
[335342212,1724139040855,-151.385325,0.00010899,2]
[335342213,1724139040864,-151.0,0.00010899,2]
[335342214,1724139040874,-151.0,0.00010899,2]
[335342215,1724139040888,-151.0,0.00010899,2]
[335342216,1724139040898,-500.0,0.00010899,2]
[335342217,1724139040907,-500.0,0.00010899,2]
[335342218,1724139040916,-500.0,0.00010899,2]
[335342219,1724139040926,-500.0,0.00010899,2]
[335342220,1724139040936,-500.0,0.00010899,2]
[335342221,1724139040945,-500.0,0.00010899,2]
[335342222,1724139040955,-500.0,0.00010899,2]
[335342223,1724139040964,-583.80542564,0.00010899,2]
[335342224,1724139040973,-151.0,0.00010899,2]
[335342225,1724139040982,-152.056918,0.00010899,2]
[335342226,1724139040991,-151.0,0.00010899,2]
[335342227,1724139041001,-151.0,0.00010899,2]
[335342228,1724139041010,-151.0,0.00010899,2]
[335342229,1724139041019,-290.272176,0.00010899,2]
[335342230,1724139041030,-151.0,0.00010899,2]
[335342231,1724139041040,-164.840548,0.00010899,2]
[335342232,1724139041050,-151.0,0.00010899,2]
[335342233,1724139041060,-226.443168,0.00010899,2]
[335342234,1724139041071,-226.443168,0.00010899,2]
[335342235,1724139041080,-151.0,0.00010899,2]
[335342236,1724139041090,-151.889182,0.00010899,2]
[335342237,1724139041100,-151.639532,0.00010899,2]
[335342238,1724139041109,-151.0,0.00010899,2]
[335342239,1724139041120,-151.0,0.00010899,2]
[335342240,1724139041129,-151.0,0.00010899,2]
[335342241,1724139041138,-151.0,0.00010899,2]
[335342242,1724139041147,-195.109842,0.00010899,2]
[335342243,1724139041156,-151.0,0.00010899,2]
[335342244,1724139041166,-151.0,0.00010899,2]
[335342245,1724139041175,-151.0,0.00010899,2]
[335342246,1724139041184,-153.121249,0.00010899,2]
[335342247,1724139041193,-256.006112,0.00010899,2]
[335342248,1724139041203,-151.0,0.00010899,2]
[335342249,1724139041213,-500.0,0.00010899,2]
[335342250,1724139041223,-500.0,0.00010899,2]
[335342251,1724139041232,-500.0,0.00010899,2]
[335342252,1724139041242,-250.47140985,0.00010899,2]
[335342253,1724139041251,-214.044101,0.00010899,2]
[335342254,1724139041260,-214.044101,0.00010899,2]
[335342255,1724139041270,-151.0,0.00010899,2]
[335342256,1724139041280,-151.0,0.00010899,2]
[335342257,1724139041290,-151.0,0.00010899,2]
[335342258,1724139041299,-151.0,0.00010899,2]
[335342259,1724139041309,-151.0,0.00010899,2]
[335342260,1724139041319,-151.0,0.00010899,2]
[335342261,1724139041329,-151.0,0.00010899,2]
[335342262,1724139041339,-152.03689,0.00010899,2]
[335342263,1724139041347,-155.96207,0.00010899,2]
[335342264,1724139041357,-151.0,0.00010899,2]
[335342265,1724139041366,-151.0,0.00010899,2]
[335342266,1724139041376,-151.0,0.00010899,2]
[335342267,1724139041385,-151.0,0.00010899,2]
[335342268,1724139041393,-151.0,0.00010899,2]
[335342269,1724139041403,-151.0,0.00010899,2]
[335342270,1724139041412,-151.0,0.00010899,2]
[335342271,1724139041421,-153.118046,0.00010899,2]
[335342272,1724139041431,-337.948653,0.00010899,2]
[335342273,1724139041440,-337.948653,0.00010899,2]
[335342274,1724139041449,-151.0,0.00010899,2]
[335342275,1724139041459,-151.0,0.00010899,2]
[335342276,1724139041469,-337.948653,0.00010899,2]
[335342277,1724139041478,-337.948653,0.00010899,2]
[335342278,1724139041488,-151.0,0.00010899,2]
[335342279,1724139041497,-151.0,0.00010899,2]
[335342280,1724139041506,-405.856983,0.00010899,2]
[335342281,1724139041515,-405.856983,0.00010899,2]
[335342282,1724139041525,-151.0,0.00010899,2]
[335342283,1724139041535,-153.018947,0.00010899,2]
[335342284,1724139041544,-405.856983,0.00010899,2]
[335342285,1724139041554,-405.856983,0.00010899,2]
[335342286,1724139041563,-151.0,0.00010899,2]
[335342287,1724139041573,-151.0,0.00010899,2]
[335342288,1724139041583,-151.0,0.00010899,2]
[335342289,1724139041592,-151.0,0.00010899,2]
[335342290,1724139041601,-159.046397,0.00010899,2]
[335342291,1724139041611,-159.046397,0.00010899,2]
[335342292,1724139041620,-159.046397,0.00010899,2]
[335342293,1724139041629,-159.046397,0.00010899,2]
[335342294,1724139041639,-151.0,0.00010899,2]
[335342295,1724139041648,-151.0,0.00010899,2]
[335342296,1724139041657,-151.0,0.00010899,2]
[335342297,1724139041666,-151.0,0.00010899,2]
[335342298,1724139041675,-164.846608,0.00010899,2]
[335342299,1724139041684,-151.0,0.00010899,2]
[335342300,1724139041693,-152.371017,0.00010899,2]
[335342301,1724139041703,-161.52912459,0.00010899,2]
[335342302,1724139041712,-151.0,0.00010899,2]
[335342303,1724139041722,-151.946215,0.00010899,2]
[335342304,1724139041731,-161.52912457,0.00010899,2]
[335342305,1724139041740,-161.52912457,0.00010899,2]
[335342306,1724139041750,-161.52912457,0.00010899,2]
[335342307,1724139041927,-366.51572793,0.00010899,2]
[335342308,1724139041936,-151.0,0.00010899,2]
[335342309,1724139041945,-459.563457,0.00010899,2]
[335342310,1724139041955,-151.0,0.00010899,2]
[335342311,1724139041965,-459.563457,0.00010899,2]
[335342312,1724139041974,-151.0,0.00010899,2]
[335342313,1724139041983,-459.563457,0.00010899,2]
[335342314,1724139041992,-459.563457,0.00010899,2]
[335342315,1724139042002,-459.563457,0.00010899,2]
[335342316,1724139042011,-459.563457,0.00010899,2]
[335342317,1724139042020,-151.0,0.00010899,2]
[335342318,1724139042029,-151.0,0.00010899,2]
[335342319,1724139042038,-151.0,0.00010899,2]
[335342320,1724139042047,-151.0,0.00010899,2]
[335342321,1724139042057,-151.651165,0.00010899,2]
[335342322,1724139042067,-411.111482,0.00010899,2]
[335342323,1724139042076,-411.111482,0.00010899,2]
[335342324,1724139042085,-411.111482,0.00010899,2]
[335342325,1724139042095,-411.111482,0.00010899,2]
[335342326,1724139042104,-411.111482,0.00010899,2]
[335342327,1724139042114,-411.111482,0.00010899,2]
[335342328,1724139042123,-151.0,0.00010899,2]
[335342329,1724139042132,-156.520721,0.00010899,2]
[335342330,1724139042142,-151.0,0.00010899,2]
[335342331,1724139042151,-151.216316,0.00010899,2]
[335342332,1724139042161,-500.0,0.00010899,2]
[335342333,1724139042170,-500.0,0.00010899,2]
[335342334,1724139042179,-500.0,0.00010899,2]
[335342335,1724139042188,-500.0,0.00010899,2]
[335342336,1724139042198,-500.0,0.00010899,2]
[335342337,1724139042207,-500.0,0.00010899,2]
[335342339,1724139042220,-500.0,0.00010899,2]
[335342340,1724139042229,-500.0,0.00010899,2]
[335342341,1724139042238,-208.54717971,0.00010899,2]
[335342342,1724139042248,-151.0,0.00010899,2]
[335342343,1724139042257,-151.0,0.00010899,2]
[335342344,1724139042267,-151.433791,0.00010899,2]
[335342345,1724139042276,-298.276906,0.00010899,2]
[335342346,1724139042285,-150.97688557,0.00010899,2]
[335342347,1724139042295,-151.810408,0.00010899,2]
[335342348,1724139042305,-151.0,0.00010899,2]
[335342349,1724139042314,-348.33845653,0.00010899,2]
[335342350,1724139042323,-151.0,0.00010899,2]
[335342353,1724139042334,-151.0,0.00010899,2]
[335342356,1724139042342,-500.0,0.00010899,2]
[335342359,1724139042352,-572.68777526,0.00010899,2]
[335342363,1724139042361,-500.0,0.00010899,2]
[335342366,1724139042371,-500.0,0.00010899,2]
[335342369,1724139042381,-500.0,0.00010899,2]
[335342372,1724139042391,-500.0,0.00010899,2]
[335342375,1724139042400,-500.0,0.00010899,2]
[335342378,1724139042409,-500.0,0.00010899,2]
[335342380,1724139042419,-500.0,0.00010899,2]
[335342382,1724139042428,-500.0,0.00010899,2]
[335342383,1724139042438,-500.0,0.00010899,2]
[335342384,1724139042447,-585.03336439,0.00010899,2]
[335342385,1724139042457,-151.0,0.00010899,2]
[335342386,1724139042468,-151.0,0.00010899,2]
[335342387,1724139042478,-151.0,0.00010899,2]
[335342388,1724139042487,-151.0,0.00010899,2]
[335342389,1724139042497,-151.0,0.00010899,2]
[335342390,1724139042506,-151.0,0.00010899,2]
[335342391,1724139042515,-161.623742,0.00010899,2]
[335342392,1724139042524,-151.0,0.00010899,2]
[335342393,1724139042534,-214.852591,0.00010899,2]
[335342394,1724139042543,-152.971784,0.00010899,2]
[335342395,1724139042552,-6243.01356185,0.000109,2]
[335342396,1724139042568,-2758.2896275,0.000109,2]
[335342397,1724139042580,-2809.89847193,0.000109,2]
[335342398,1724139042605,-360.369066,0.0001079,2]
[335342399,1724139042615,-255860.31303982,0.000109,2]
[335342400,1724139042627,-3628.02515621,0.000109,2]
[335342415,1724139043181,-360.369066,0.00010475,2]
[335342416,1724139043191,-360.369066,0.00010899,2]
[335342417,1724139043200,-360.369066,0.00010899,2]
[335342418,1724139043209,-360.369066,0.00010899,2]
[335342419,1724139043219,-10405.65667486,0.000109,2]
[335342420,1724139043231,-1496.47520999,0.000109,2]
[335342421,1724139043242,-742.5,0.000109,2]
[335342424,1724139071812,500.0,8.22e-05,2]
[335342425,1724139073535,500.0,9.59e-05,2]
[335342426,1724139083789,267.31,9.788e-05,2]
[335342427,1724139145425,1635.35007841,9.788e-05,2]
[335342428,1724139148333,474.87,9.77e-05,2]
[335342429,1724139182054,402.23,8.219e-05,2]
[335342430,1724139190768,200.0,9.745e-05,2]
[335342431,1724139201263,1548.97,9.738e-05,2]
[335342432,1724139206009,500.0,8.22e-05,2]
[335342433,1724139242928,1635.35007841,8.22e-05,2]
[335342434,1724139250668,667.57,9.737e-05,2]
[335342435,1724139333053,233.06,9.729e-05,2]
[335342436,1724139391032,197.01,7.78e-05,2]
[335342437,1724139396823,766.61,9.727e-05,2]
[335342438,1724139423935,1635.35007841,7.78e-05,2]
[335342439,1724139451370,400.14685305,9.841e-05,2]
[335342440,1724139457985,250.0,9.723e-05,2]
[335342441,1724139476232,-164.40811307,9.929e-05,2]
[335342442,1724139476253,-700.0,0.00010006,2]
[335342443,1724139476275,-600.0,0.00010028,2]
[335342444,1724139476303,-700.0,0.00010046,2]
[335342445,1724139476325,-303.3037382,0.000101,2]
[335342446,1724139476347,-800.0,0.000101,3]
[335342447,1724139476367,-4534.73541827,0.000101,2]
[335342448,1724139476387,-1600.0,0.000102,3]
[335342449,1724139476408,-2500.0,0.000103,3]
[335342450,1724139476428,-600.0,0.00010342,2]
[335342451,1724139476448,-150.99,0.00010379,2]
[335342452,1724139476469,-2297.28,0.00010379,2]
[335342453,1724139476488,-528.84,0.00010399,2]
[335342454,1724139476509,-3300.0,0.000104,3]
[335342455,1724139476529,-500.0,0.00010406,2]
[335342456,1724139476552,-600.0,0.00010457,2]
[335342457,1724139476573,-402.23,0.00010463,2]
[335342458,1724139476593,-151.0,0.00010475,2]
[335342459,1724139476614,-154.058543,0.00010475,2]
[335342460,1724139476634,-167.35853,0.00010475,2]
[335342461,1724139476655,-4100.0,0.000105,3]
[335342462,1724139476675,-547.20212831,0.00010505,2]
[335342463,1724139476695,-700.0,0.00010578,2]
[335342464,1724139476716,-500.0,0.00010587,2]
[335342465,1724139476738,-800.0,0.000106,3]
[335342466,1724139476758,-1500.0,0.00010635,2]
[335342467,1724139476781,-150.0,0.00010637,2]
[335342468,1724139476804,-1500.0,0.00010641,2]
[335342469,1724139476825,-150.0,0.00010641,2]
[335342470,1724139476847,-150.0,0.00010646,2]
[335342471,1724139476870,-150.0,0.00010651,2]
[335342472,1724139476892,-300.0,0.00010652,2]
[335342473,1724139476912,-150.0,0.00010659,2]
[335342474,1724139476934,-203.24854396,0.00010662,2]
[335342475,1724139476954,-2354.23,0.00010662,2]
[335342476,1724139476977,-150.0,0.00010666,2]
[335342477,1724139476998,-150.0,0.00010666,2]
[335342478,1724139477021,-150.0,0.00010668,2]
[335342479,1724139477046,-150.0,0.0001067,2]
[335342480,1724139477067,-1500.0,0.0001067,2]
[335342481,1724139477088,-300.0,0.0001067,2]
[335342482,1724139477108,-300.0,0.00010671,2]
[335342483,1724139477131,-1500.0,0.00010672,2]
[335342484,1724139477152,-150.0,0.00010682,2]
[335342485,1724139477173,-500.0,0.00010685,2]
[335342486,1724139477194,-500.0,0.00010686,2]
[335342487,1724139477216,-150.0,0.00010688,2]
[335342488,1724139477236,-150.0,0.00010696,2]
[335342489,1724139477257,-1341.11498519,0.00010698,2]
[335342490,1724139477310,1635.35007841,9.43e-05,2]
[335342491,1724139518793,547.20212831,9.43e-05,2]
[335342492,1724139526441,588.23675447,9.43e-05,2]
[335342493,1724139529298,310.01535477,9.43e-05,2]
[335342494,1724139540372,500.0,8.22e-05,2]
[335342495,1724139541185,500.0,8.22e-05,2]
[335342496,1724139572980,500.0,8.22e-05,2]
[335342497,1724139573254,500.0,8.22e-05,2]
[335342498,1724139574582,500.0,9.59e-05,2]
[335342499,1724139581463,500.0,8.22e-05,2]
[335342500,1724139583037,500.0,9.59e-05,2]
[335342501,1724139655901,379.57,8.219e-05,2]
[335342502,1724139657964,322.63,9.814e-05,2]
[335342503,1724139701040,200.0,9.804e-05,2]
[335342504,1724139715331,465.94,9.804e-05,2]
[335342505,1724139780123,1635.35007841,9.804e-05,2]
[335342506,1724139860087,179.64,9.762e-05,2]
[335342507,1724139893491,1634.83911979,9.804e-05,2]
[335342508,1724140026350,500.0,9.758e-05,2]
[335342509,1724140100426,1074.43,9.748e-05,2]
[335342510,1724140128395,379.47,8.219e-05,2]
[335342511,1724140133387,246.5,9.734e-05,2]
[335342512,1724140159899,23900.0,9.733e-05,2]
[335342525,1724140231594,-317.28676016,9.988e-05,2]
[335342526,1724140231603,-188.1442136,9.997e-05,2]
[335342527,1724140231615,-423.63600666,9.997e-05,2]
[335342528,1724140231625,-59.13985078,0.00010097,2]
[335342529,1724140231646,-1335.27392991,0.00010097,2]
[335342530,1724140231700,-347.40099992,0.00010097,2]
[335342531,1724140231754,-960.92161359,0.00010097,2]
[335342532,1724140231765,-5619.05612154,0.00010097,2]
[335342533,1724140231775,-11400.0,0.00010097,2]
[335342534,1724140231786,-1250.98806938,0.00010097,2]
[335342535,1724140231808,-1047.0,0.00010097,2]
[335342536,1724140231819,-1016.00057471,0.00010097,2]
[335342537,1724140231830,-3130.98864343,0.00010097,2]
[335342538,1724140231840,-2226.95782688,0.00010097,2]
[335342539,1724140231850,-155.52427581,0.00010097,2]
[335342540,1724140231859,-372.86756186,0.00010097,2]
[335342541,1724140231869,-1070.27635204,0.00010097,2]
[335342542,1724140231878,-716.41287549,0.00010099,2]
[335342543,1724140231887,-500.0,0.00010199,2]
[335342544,1724140231896,-500.0,0.00010271,2]
[335342545,1724140231907,-600.0,0.00010287,2]
[335342546,1724140231916,-500.0,0.00010299,2]
[335342548,1724140231925,-619.93922705,0.00010329,2]
[335342550,1724140231935,-105.47901175,0.00010417,2]
[335342553,1724140231951,-394.52098825,0.00010417,2]
[335342555,1724140231961,-379.47,0.00010462,2]
[335342557,1724140231970,-300.0,0.0001047,2]
[335342559,1724140231980,-352.77390033,0.00010471,2]
[335342561,1724140231989,-500.0,0.00010472,2]
[335342563,1724140231999,-500.0,0.00010481,2]
[335342566,1724140232009,-499.99,0.00010482,2]
[335342568,1724140232019,-500.0,0.00010497,2]
[335342571,1724140232029,-939.86,0.000105,2]
[335342573,1724140232038,-500.0,0.00010505,2]
[335342575,1724140232048,-500.0,0.0001055,2]